[Event "Titled Tuesday Blitz September 28 2021"]
[White "Pichot, Alan"]
[Black "Yoo, Christopher Woojin"]
[WhiteFideId "110973"]
[BlackFideId "30909694"]
[WhiteElo "2845"]
[BlackElo "2931"]
[Result "1-0"]
[Round "07"]
[TimeControl "180+1"]
[Date "2021.09.28"]
[WhiteClock "0:00:06"]
[BlackClock "0:00:04"]

1. e4 {[%clk 0:03:00]}  c5 {[%clk 0:02:59]} 2. Nf3 {[%clk 0:03:00]}  e6 {[%clk 0:02:59]} 3. d4 {[%clk 0:03:00]}  cxd4 {[%clk 0:03:00]} 4. Nxd4 {[%clk 0:03:01]}  Nf6 {[%clk 0:03:00]} 5. Nc3 {[%clk 0:03:01]}  Nc6 {[%clk 0:03:01]} 6. Nxc6 {[%clk 0:02:54]}  bxc6 {[%clk 0:03:01]} 7. e5 {[%clk 0:02:55]}  Nd5 {[%clk 0:03:01]} 8. Ne4 {[%clk 0:02:55]}  Qc7 {[%clk 0:03:01]} 9. f4 {[%clk 0:02:55]}  f5 {[%clk 0:03:02]} 10. exf6 {[%clk 0:02:54]}  gxf6 {[%clk 0:03:03]} 11. Bd2 {[%clk 0:02:54]}  Qb6 {[%clk 0:02:53]} 12. c4 {[%clk 0:02:33]}  Ne3 {[%clk 0:02:41]} 13. Qh5+ {[%clk 0:02:33]}  Kd8 {[%clk 0:02:38]} 14. c5 {[%clk 0:02:12]}  Bxc5 {[%clk 0:01:04]} 15. Nxc5 {[%clk 0:02:12]}  Qxb2 {[%clk 0:00:54]} 16. Rc1 {[%clk 0:02:07]}  Nd5 {[%clk 0:00:38]} 17. Bd3 {[%clk 0:01:28]}  Qd4 {[%clk 0:00:27]} 18. Qf3 {[%clk 0:01:25]}  Rb8 {[%clk 0:00:24]} 19. Qe4 {[%clk 0:01:21]}  Qxe4+ {[%clk 0:00:21]} 20. Nxe4 {[%clk 0:01:05]}  Nb4 {[%clk 0:00:18]} 21. Bxb4 {[%clk 0:00:56]}  Rxb4 {[%clk 0:00:18]} 22. Nxf6 {[%clk 0:00:57]}  Rxf4 {[%clk 0:00:16]} 23. Rf1 {[%clk 0:00:57]}  Rd4 {[%clk 0:00:14]} 24. Ke2 {[%clk 0:00:55]}  Ke7 {[%clk 0:00:14]} 25. Ne4 {[%clk 0:00:49]}  d5 {[%clk 0:00:13]} 26. Nd2 {[%clk 0:00:40]}  Kd6 {[%clk 0:00:09]} 27. Rf7 {[%clk 0:00:35]}  c5 {[%clk 0:00:07]} 28. Nb3 {[%clk 0:00:34]}  Rxd3 {[%clk 0:00:05]} 29. Kxd3 {[%clk 0:00:33]}  c4+ {[%clk 0:00:05]} 30. Ke3 {[%clk 0:00:32]}  cxb3 {[%clk 0:00:06]} 31. axb3 {[%clk 0:00:33]}  Bd7 {[%clk 0:00:06]} 32. Ra1 {[%clk 0:00:32]}  Rb8 {[%clk 0:00:05]} 33. Ra6+ {[%clk 0:00:30]}  Bc6 {[%clk 0:00:06]} 34. Rxh7 {[%clk 0:00:22]}  Rxb3+ {[%clk 0:00:05]} 35. Kf4 {[%clk 0:00:22]}  Rb4+ {[%clk 0:00:05]} 36. Kg5 {[%clk 0:00:22]}  d4 {[%clk 0:00:05]} 37. Rh8 {[%clk 0:00:10]}  Rb5+ {[%clk 0:00:03]} 38. Kf4 {[%clk 0:00:07]}  Rf5+ {[%clk 0:00:02]} 39. Kg3 {[%clk 0:00:07]}  Rg5+ {[%clk 0:00:02]} 40. Kh3 {[%clk 0:00:03]}  Rxg2 {[%clk 0:00:03]} 41. Rxc6+ {[%clk 0:00:03]}  Kxc6 {[%clk 0:00:03]} 42. Kxg2 {[%clk 0:00:04]}  e5 {[%clk 0:00:03]} 43. Kf3 {[%clk 0:00:04]}  Kd5 {[%clk 0:00:02]} 44. Rd8+ {[%clk 0:00:04]}  Kc4 {[%clk 0:00:03]} 45. Ke4 {[%clk 0:00:05]}  a5 {[%clk 0:00:04]} 46. Kxe5 {[%clk 0:00:05]}  d3 {[%clk 0:00:04]} 47. Ke4 {[%clk 0:00:06]} 1-0


[Site "https://www.chess.com"]

[Event "Titled Tuesday Blitz September 28 2021"]
[White "Pridorozhni, Aleksei"]
[Black "Ibrahimli, Murad"]
[WhiteFideId "4127870"]
[BlackFideId "13410229"]
[WhiteElo "2840"]
[BlackElo "2931"]
[Result "0-1"]
[Round "07"]
[TimeControl "180+1"]
[Date "2021.09.28"]
[WhiteClock "0:00:11"]
[BlackClock "0:00:29"]

1. e4 {[%clk 0:03:00]}  c5 {[%clk 0:02:58]} 2. Nc3 {[%clk 0:02:59]}  Nc6 {[%clk 0:02:57]} 3. Bb5 {[%clk 0:02:58]}  Nd4 {[%clk 0:02:57]} 4. Nf3 {[%clk 0:02:58]}  e6 {[%clk 0:02:57]} 5. O-O {[%clk 0:02:57]}  Nxf3+ {[%clk 0:02:57]} 6. Qxf3 {[%clk 0:02:57]}  Ne7 {[%clk 0:02:58]} 7. d3 {[%clk 0:02:52]}  a6 {[%clk 0:02:56]} 8. Ba4 {[%clk 0:02:52]}  b5 {[%clk 0:02:51]} 9. Bb3 {[%clk 0:02:52]}  Nc6 {[%clk 0:02:50]} 10. Qg3 {[%clk 0:02:48]}  Qf6 {[%clk 0:02:42]} 11. Be3 {[%clk 0:02:42]}  Qg6 {[%clk 0:02:29]} 12. a4 {[%clk 0:02:26]}  Qxg3 {[%clk 0:02:26]} 13. hxg3 {[%clk 0:02:27]}  b4 {[%clk 0:02:26]} 14. Ne2 {[%clk 0:02:27]}  Na5 {[%clk 0:02:22]} 15. Ba2 {[%clk 0:02:27]}  Bb7 {[%clk 0:02:21]} 16. f3 {[%clk 0:02:18]}  Rc8 {[%clk 0:02:16]} 17. Rad1 {[%clk 0:02:10]}  Bc6 {[%clk 0:02:09]} 18. Ra1 {[%clk 0:02:10]}  Bd6 {[%clk 0:01:57]} 19. Kf2 {[%clk 0:02:10]}  f6 {[%clk 0:01:53]} 20. Bf4 {[%clk 0:01:58]}  Be7 {[%clk 0:01:46]} 21. Bc4 {[%clk 0:01:53]}  Nxc4 {[%clk 0:01:43]} 22. dxc4 {[%clk 0:01:54]}  g5 {[%clk 0:01:29]} 23. Be3 {[%clk 0:01:50]}  d6 {[%clk 0:01:29]} 24. g4 {[%clk 0:01:46]}  h5 {[%clk 0:01:25]} 25. gxh5 {[%clk 0:01:44]}  Rxh5 {[%clk 0:01:25]} 26. b3 {[%clk 0:01:44]}  Kf7 {[%clk 0:01:21]} 27. Rh1 {[%clk 0:01:33]}  Rch8 {[%clk 0:01:20]} 28. Rxh5 {[%clk 0:01:33]}  Rxh5 {[%clk 0:01:21]} 29. Rd1 {[%clk 0:01:33]}  Rh7 {[%clk 0:01:14]} 30. Nc1 {[%clk 0:01:32]}  g4 {[%clk 0:01:13]} 31. Rd2 {[%clk 0:01:16]}  gxf3 {[%clk 0:01:12]} 32. gxf3 {[%clk 0:01:16]}  f5 {[%clk 0:01:08]} 33. exf5 {[%clk 0:01:13]}  exf5 {[%clk 0:01:03]} 34. Nd3 {[%clk 0:00:46]}  Rh3 {[%clk 0:00:55]} 35. Bf4 {[%clk 0:00:26]}  Rxf3+ {[%clk 0:00:53]} 36. Ke2 {[%clk 0:00:22]}  Be4 {[%clk 0:00:51]} 37. Rd1 {[%clk 0:00:21]}  Rh3 {[%clk 0:00:46]} 38. Rg1 {[%clk 0:00:20]}  Rh4 {[%clk 0:00:37]} 39. Ke3 {[%clk 0:00:20]}  Bf6 {[%clk 0:00:35]} 40. Bg3 {[%clk 0:00:14]}  Bd4+ {[%clk 0:00:34]} 41. Ke2 {[%clk 0:00:14]}  Rg4 {[%clk 0:00:28]} 42. Nf2 {[%clk 0:00:15]}  Bxf2 {[%clk 0:00:28]} 43. Kxf2 {[%clk 0:00:15]}  f4 {[%clk 0:00:28]} 44. Bh2 {[%clk 0:00:14]}  Rxg1 {[%clk 0:00:28]} 45. Kxg1 {[%clk 0:00:15]}  Bxc2 {[%clk 0:00:28]} 46. Bxf4 {[%clk 0:00:15]}  Ke6 {[%clk 0:00:29]} 47. a5 {[%clk 0:00:14]}  Bxb3 {[%clk 0:00:29]} 48. Kf2 {[%clk 0:00:15]}  Bxc4 {[%clk 0:00:29]} 49. Ke3 {[%clk 0:00:16]}  Kd5 {[%clk 0:00:27]} 50. Bg3 {[%clk 0:00:15]}  Kc6 {[%clk 0:00:27]} 51. Bf4 {[%clk 0:00:15]}  d5 {[%clk 0:00:28]} 52. Kd2 {[%clk 0:00:14]}  d4 {[%clk 0:00:28]} 53. Bh6 {[%clk 0:00:13]}  Kb5 {[%clk 0:00:29]} 54. Bf8 {[%clk 0:00:13]}  Bd5 {[%clk 0:00:28]} 55. Kc2 {[%clk 0:00:14]}  c4 {[%clk 0:00:28]} 56. Bg7 {[%clk 0:00:13]}  d3+ {[%clk 0:00:29]} 57. Kd2 {[%clk 0:00:13]}  Kxa5 {[%clk 0:00:29]} 58. Bd4 {[%clk 0:00:11]}  Ka4 {[%clk 0:00:29]} 0-1


[Site "https://www.chess.com"]

[Event "Titled Tuesday Blitz September 28 2021"]
[White "Quispe Arteaga, Gabriel"]
[Black "Sellitti, Federico"]
[WhiteFideId "32059809"]
[BlackFideId "821829"]
[WhiteElo "2192"]
[BlackElo "2561"]
[Result "1/2-1/2"]
[Round "07"]
[TimeControl "180+1"]
[Date "2021.09.28"]
[WhiteClock "0:00:54"]
[BlackClock "0:00:07"]

1. c4 {[%clk 0:03:00]}  c5 {[%clk 0:02:22]} 2. Nf3 {[%clk 0:02:41]}  Nf6 {[%clk 0:02:21]} 3. d4 {[%clk 0:02:38]}  cxd4 {[%clk 0:02:21]} 4. Nxd4 {[%clk 0:02:39]}  Nc6 {[%clk 0:02:21]} 5. g3 {[%clk 0:02:40]}  g6 {[%clk 0:02:21]} 6. Bg2 {[%clk 0:02:40]}  Bg7 {[%clk 0:02:22]} 7. O-O {[%clk 0:02:41]}  O-O {[%clk 0:02:23]} 8. e3 {[%clk 0:02:40]}  d5 {[%clk 0:02:00]} 9. c5 {[%clk 0:02:40]}  e5 {[%clk 0:01:59]} 10. Nxc6 {[%clk 0:02:40]}  bxc6 {[%clk 0:02:00]} 11. Nc3 {[%clk 0:02:40]}  Bg4 {[%clk 0:01:38]} 12. Qa4 {[%clk 0:02:39]}  Qd7 {[%clk 0:01:35]} 13. b4 {[%clk 0:02:30]}  e4 {[%clk 0:01:35]} 14. Bb2 {[%clk 0:02:30]}  h5 {[%clk 0:01:33]} 15. b5 {[%clk 0:02:29]}  cxb5 {[%clk 0:01:16]} 16. Qxb5 {[%clk 0:02:29]}  Qxb5 {[%clk 0:01:16]} 17. Nxb5 {[%clk 0:02:30]}  Rab8 {[%clk 0:01:17]} 18. Bxf6 {[%clk 0:02:30]}  Bxf6 {[%clk 0:01:06]} 19. Nd4 {[%clk 0:02:30]}  Rfc8 {[%clk 0:01:03]} 20. Rac1 {[%clk 0:02:17]}  Bxd4 {[%clk 0:00:59]} 21. exd4 {[%clk 0:02:18]}  Rb4 {[%clk 0:01:00]} 22. f3 {[%clk 0:02:13]}  exf3 {[%clk 0:00:57]} 23. Bxf3 {[%clk 0:02:14]}  Bxf3 {[%clk 0:00:58]} 24. Rxf3 {[%clk 0:02:14]}  Rxd4 {[%clk 0:00:59]} 25. Rfc3 {[%clk 0:01:53]}  Rc7 {[%clk 0:00:56]} 26. R1c2 {[%clk 0:01:50]}  Kg7 {[%clk 0:00:55]} 27. Kf2 {[%clk 0:01:50]}  Kf6 {[%clk 0:00:55]} 28. Rf3+ {[%clk 0:01:49]}  Ke5 {[%clk 0:00:52]} 29. Ke3 {[%clk 0:01:31]}  Rc4 {[%clk 0:00:48]} 30. Re2 {[%clk 0:01:31]}  Re4+ {[%clk 0:00:46]} 31. Kd3 {[%clk 0:01:31]}  Rxe2 {[%clk 0:00:47]} 32. Kxe2 {[%clk 0:01:31]}  f5 {[%clk 0:00:48]} 33. Re3+ {[%clk 0:01:28]}  Kf6 {[%clk 0:00:42]} 34. Rc3 {[%clk 0:01:28]}  d4 {[%clk 0:00:40]} 35. Rc4 {[%clk 0:01:27]}  Ke5 {[%clk 0:00:36]} 36. Kd3 {[%clk 0:01:27]}  g5 {[%clk 0:00:37]} 37. c6 {[%clk 0:01:17]}  Kd5 {[%clk 0:00:25]} 38. Rxd4+ {[%clk 0:01:05]}  Kxc6 {[%clk 0:00:26]} 39. Rc4+ {[%clk 0:01:06]}  Kd6 {[%clk 0:00:26]} 40. Ra4 {[%clk 0:01:06]}  Ke6 {[%clk 0:00:16]} 41. Ra6+ {[%clk 0:01:06]}  Ke5 {[%clk 0:00:17]} 42. Ra5+ {[%clk 0:01:06]}  Ke6 {[%clk 0:00:17]} 43. Ra6+ {[%clk 0:01:06]}  Kf7 {[%clk 0:00:17]} 44. Rh6 {[%clk 0:00:57]}  Rd7+ {[%clk 0:00:12]} 45. Ke3 {[%clk 0:00:56]}  Re7+ {[%clk 0:00:11]} 46. Kd3 {[%clk 0:00:54]}  Rd7+ {[%clk 0:00:11]} 47. Ke3 {[%clk 0:00:54]}  Re7+ {[%clk 0:00:11]} 48. Kd3 {[%clk 0:00:54]}  Rd7+ {[%clk 0:00:07]} 1/2-1/2


[Site "https://www.chess.com"]

[Event "Titled Tuesday Blitz September 28 2021"]
[White "Rodchenkov, Vitaly"]
[Black "Gabrielian, Artur"]
[WhiteFideId "4152964"]
[BlackFideId "4131002"]
[WhiteElo "2337"]
[BlackElo "2489"]
[Result "1-0"]
[Round "07"]
[TimeControl "180+1"]
[Date "2021.09.28"]
[WhiteClock "0:00:07"]
[BlackClock "0:00:08"]

1. Nf3 {[%clk 0:03:00]}  Nf6 {[%clk 0:02:59]} 2. c4 {[%clk 0:03:00]}  g6 {[%clk 0:03:00]} 3. b4 {[%clk 0:03:00]}  Bg7 {[%clk 0:03:00]} 4. Bb2 {[%clk 0:03:00]}  O-O {[%clk 0:03:00]} 5. g3 {[%clk 0:03:00]}  d6 {[%clk 0:03:00]} 6. Bg2 {[%clk 0:03:00]}  e5 {[%clk 0:03:01]} 7. O-O {[%clk 0:03:00]}  a5 {[%clk 0:03:01]} 8. b5 {[%clk 0:03:00]}  Nbd7 {[%clk 0:03:01]} 9. Nc3 {[%clk 0:03:00]}  Nc5 {[%clk 0:03:01]} 10. Qc2 {[%clk 0:03:00]}  Re8 {[%clk 0:02:57]} 11. d3 {[%clk 0:03:00]}  a4 {[%clk 0:02:49]} 12. a3 {[%clk 0:02:57]}  Nfd7 {[%clk 0:02:44]} 13. Nd2 {[%clk 0:02:56]}  Ne6 {[%clk 0:02:43]} 14. Nxa4 {[%clk 0:02:54]}  Nd4 {[%clk 0:02:43]} 15. Bxd4 {[%clk 0:02:53]}  exd4 {[%clk 0:02:44]} 16. Nf3 {[%clk 0:02:51]}  Qe7 {[%clk 0:02:40]} 17. Rfe1 {[%clk 0:02:50]}  Ne5 {[%clk 0:02:32]} 18. Nxe5 {[%clk 0:02:41]}  Bxe5 {[%clk 0:02:32]} 19. Nb2 {[%clk 0:02:39]}  h5 {[%clk 0:02:31]} 20. a4 {[%clk 0:02:33]}  Ra5 {[%clk 0:02:28]} 21. e3 {[%clk 0:02:20]}  Qd8 {[%clk 0:02:21]} 22. c5 {[%clk 0:02:00]}  dxc5 {[%clk 0:02:12]} 23. Nc4 {[%clk 0:02:00]}  Ra8 {[%clk 0:02:09]} 24. Nxe5 {[%clk 0:01:08]}  Rxe5 {[%clk 0:02:08]} 25. Qb2 {[%clk 0:01:08]}  Qe7 {[%clk 0:01:58]} 26. e4 {[%clk 0:01:02]}  b6 {[%clk 0:01:41]} 27. f4 {[%clk 0:01:01]}  Re6 {[%clk 0:01:41]} 28. e5 {[%clk 0:01:01]}  Ra5 {[%clk 0:01:39]} 29. Bd5 {[%clk 0:00:59]}  Qd8 {[%clk 0:01:39]} 30. Bxe6 {[%clk 0:00:59]}  Bxe6 {[%clk 0:01:40]} 31. Re2 {[%clk 0:00:54]}  Qd5 {[%clk 0:01:36]} 32. Qc2 {[%clk 0:00:46]}  Qa8 {[%clk 0:01:23]} 33. Rf2 {[%clk 0:00:42]}  Rxb5 {[%clk 0:01:19]} 34. f5 {[%clk 0:00:40]}  Bxf5 {[%clk 0:01:11]} 35. Rxf5 {[%clk 0:00:40]}  gxf5 {[%clk 0:01:11]} 36. Qe2 {[%clk 0:00:41]}  Rb3 {[%clk 0:01:02]} 37. Qxh5 {[%clk 0:00:40]}  Qd8 {[%clk 0:01:00]} 38. Qxf5 {[%clk 0:00:39]}  c4 {[%clk 0:00:58]} 39. Rf1 {[%clk 0:00:36]}  Qe7 {[%clk 0:00:55]} 40. Rf4 {[%clk 0:00:35]}  Rb1+ {[%clk 0:00:48]} 41. Kg2 {[%clk 0:00:32]}  Rb2+ {[%clk 0:00:48]} 42. Kg1 {[%clk 0:00:28]}  Rb1+ {[%clk 0:00:46]} 43. Kg2 {[%clk 0:00:29]}  Rb2+ {[%clk 0:00:39]} 44. Kg1 {[%clk 0:00:28]}  Qe6 {[%clk 0:00:31]} 45. Rg4+ {[%clk 0:00:25]}  Kf8 {[%clk 0:00:30]} 46. Qg5 {[%clk 0:00:25]}  Rb1+ {[%clk 0:00:28]} 47. Kf2 {[%clk 0:00:24]}  Ke8 {[%clk 0:00:23]} 48. Rxd4 {[%clk 0:00:18]}  Rb2+ {[%clk 0:00:20]} 49. Ke3 {[%clk 0:00:18]}  f6 {[%clk 0:00:14]} 50. Qg6+ {[%clk 0:00:17]}  Ke7 {[%clk 0:00:12]} 51. Qg7+ {[%clk 0:00:16]}  Ke8 {[%clk 0:00:13]} 52. Qh8+ {[%clk 0:00:14]}  Kf7 {[%clk 0:00:13]} 53. Qh7+ {[%clk 0:00:13]}  Ke8 {[%clk 0:00:13]} 54. Qg6+ {[%clk 0:00:11]}  Ke7 {[%clk 0:00:12]} 55. Qg7+ {[%clk 0:00:10]}  Ke8 {[%clk 0:00:13]} 56. Re4 {[%clk 0:00:09]}  f5 {[%clk 0:00:12]} 57. Rh4 {[%clk 0:00:09]}  f4+ {[%clk 0:00:12]} 58. gxf4 {[%clk 0:00:09]}  Qe7 {[%clk 0:00:11]} 59. Qg8+ {[%clk 0:00:07]}  Kd7 {[%clk 0:00:11]} 60. Rh7 {[%clk 0:00:06]}  c3 {[%clk 0:00:10]} 61. Rxe7+ {[%clk 0:00:06]}  Kxe7 {[%clk 0:00:10]} 62. Qc4 {[%clk 0:00:06]}  c5 {[%clk 0:00:10]} 63. Qxc3 {[%clk 0:00:06]}  Rxh2 {[%clk 0:00:11]} 64. f5 {[%clk 0:00:06]}  Rh3+ {[%clk 0:00:11]} 65. Ke4 {[%clk 0:00:06]}  Rh4+ {[%clk 0:00:12]} 66. Kd5 {[%clk 0:00:06]}  Kd7 {[%clk 0:00:12]} 67. f6 {[%clk 0:00:07]}  Rh5 {[%clk 0:00:10]} 68. Qb3 {[%clk 0:00:07]}  Kc7 {[%clk 0:00:10]} 69. Qb5 {[%clk 0:00:07]}  Rh7 {[%clk 0:00:09]} 70. Qc6+ {[%clk 0:00:07]}  Kd8 {[%clk 0:00:10]} 71. e6 {[%clk 0:00:07]}  Rh5+ {[%clk 0:00:08]} 72. Kd6 {[%clk 0:00:07]}  Rh7 {[%clk 0:00:08]} 73. e7+ {[%clk 0:00:07]}  Rxe7 {[%clk 0:00:08]} 74. fxe7# {[%clk 0:00:07]} 1-0


[Site "https://www.chess.com"]

[Event "Titled Tuesday Blitz September 28 2021"]
[White "Samsonkin, Artiom"]
[Black "Megagigahiper3345"]
[WhiteFideId "13503111"]
[WhiteElo "2513"]
[BlackElo "2524"]
[Result "0-1"]
[Round "07"]
[TimeControl "180+1"]
[Date "2021.09.28"]
[WhiteClock "0:00:14"]
[BlackClock "0:01:09"]

1. e4 {[%clk 0:03:00]}  e6 {[%clk 0:02:59]} 2. d4 {[%clk 0:02:59]}  d5 {[%clk 0:03:00]} 3. Nc3 {[%clk 0:03:00]}  Bb4 {[%clk 0:02:59]} 4. Ne2 {[%clk 0:03:00]}  Nf6 {[%clk 0:02:54]} 5. e5 {[%clk 0:02:59]}  Nfd7 {[%clk 0:02:54]} 6. Qd3 {[%clk 0:02:59]}  b6 {[%clk 0:02:54]} 7. Qg3 {[%clk 0:02:56]}  Kf8 {[%clk 0:02:53]} 8. a3 {[%clk 0:02:55]}  Be7 {[%clk 0:02:53]} 9. Nf4 {[%clk 0:02:34]}  c5 {[%clk 0:02:48]} 10. Nh5 {[%clk 0:02:22]}  g6 {[%clk 0:02:49]} 11. Bh6+ {[%clk 0:02:20]}  Kg8 {[%clk 0:02:49]} 12. dxc5 {[%clk 0:02:14]}  Bh4 {[%clk 0:02:39]} 13. Qf4 {[%clk 0:01:58]}  gxh5 {[%clk 0:02:31]} 14. g3 {[%clk 0:01:55]}  Be7 {[%clk 0:02:25]} 15. h4 {[%clk 0:01:23]}  Bf8 {[%clk 0:02:23]} 16. Bg5 {[%clk 0:01:08]}  Qc7 {[%clk 0:02:23]} 17. Bf6 {[%clk 0:01:09]}  h6 {[%clk 0:02:06]} 18. Bxh8 {[%clk 0:01:06]}  Kxh8 {[%clk 0:02:05]} 19. O-O-O {[%clk 0:01:01]}  Qxe5 {[%clk 0:02:04]} 20. Qxf7 {[%clk 0:01:01]}  Qf6 {[%clk 0:01:51]} 21. Qxh5 {[%clk 0:00:42]}  Nxc5 {[%clk 0:01:48]} 22. f4 {[%clk 0:00:35]}  Nc6 {[%clk 0:01:47]} 23. Bg2 {[%clk 0:00:32]}  Bd7 {[%clk 0:01:47]} 24. Rhe1 {[%clk 0:00:31]}  Be8 {[%clk 0:01:43]} 25. Qf3 {[%clk 0:00:29]}  Rc8 {[%clk 0:01:42]} 26. Kb1 {[%clk 0:00:24]}  Bg6 {[%clk 0:01:38]} 27. g4 {[%clk 0:00:22]}  Nd4 {[%clk 0:01:37]} 28. Rxd4 {[%clk 0:00:20]}  Qxd4 {[%clk 0:01:38]} 29. f5 {[%clk 0:00:21]}  exf5 {[%clk 0:01:32]} 30. gxf5 {[%clk 0:00:22]}  Bf7 {[%clk 0:01:32]} 31. Nxd5 {[%clk 0:00:17]}  Na4 {[%clk 0:01:20]} 32. c3 {[%clk 0:00:15]}  Qd2 {[%clk 0:01:13]} 33. Re2 {[%clk 0:00:16]}  Qd1+ {[%clk 0:01:11]} 34. Ka2 {[%clk 0:00:14]}  Rxc3 {[%clk 0:01:09]} 0-1


[Site "https://www.chess.com"]

[Event "Titled Tuesday Blitz September 28 2021"]
[White "Shtembuliak, Evgeny"]
[Black "Vokhidov, Shamsiddin"]
[WhiteFideId "14113325"]
[BlackFideId "14204223"]
[WhiteElo "2504"]
[BlackElo "2616"]
[Result "0-1"]
[Round "07"]
[TimeControl "180+1"]
[Date "2021.09.28"]
[WhiteClock "0:00:15"]
[BlackClock "0:01:01"]

1. e4 {[%clk 0:03:00]}  c5 {[%clk 0:03:00]} 2. Nc3 {[%clk 0:03:01]}  Nc6 {[%clk 0:02:59]} 3. Bb5 {[%clk 0:03:01]}  Nd4 {[%clk 0:03:00]} 4. Bc4 {[%clk 0:03:01]}  a6 {[%clk 0:03:00]} 5. a4 {[%clk 0:02:54]}  e6 {[%clk 0:02:57]} 6. Nge2 {[%clk 0:02:55]}  Nf6 {[%clk 0:02:57]} 7. O-O {[%clk 0:02:55]}  d5 {[%clk 0:02:57]} 8. exd5 {[%clk 0:02:55]}  exd5 {[%clk 0:02:58]} 9. Ba2 {[%clk 0:02:56]}  Bg4 {[%clk 0:02:54]} 10. f3 {[%clk 0:02:56]}  Bf5 {[%clk 0:02:48]} 11. d3 {[%clk 0:02:55]}  h6 {[%clk 0:02:33]} 12. Nxd4 {[%clk 0:02:47]}  cxd4 {[%clk 0:02:32]} 13. Ne2 {[%clk 0:02:48]}  Bc5 {[%clk 0:02:29]} 14. Ng3 {[%clk 0:02:44]}  Bh7 {[%clk 0:02:23]} 15. Re1+ {[%clk 0:02:31]}  Kf8 {[%clk 0:02:18]} 16. Bf4 {[%clk 0:02:28]}  Bd6 {[%clk 0:02:15]} 17. Qd2 {[%clk 0:02:26]}  Rc8 {[%clk 0:02:13]} 18. Bb3 {[%clk 0:02:25]}  Qc7 {[%clk 0:02:04]} 19. Bxd6+ {[%clk 0:02:24]}  Qxd6 {[%clk 0:02:05]} 20. Re2 {[%clk 0:02:18]}  g5 {[%clk 0:02:03]} 21. Rae1 {[%clk 0:02:18]}  Kg7 {[%clk 0:02:02]} 22. Re5 {[%clk 0:02:02]}  Rhe8 {[%clk 0:01:59]} 23. Qe2 {[%clk 0:01:51]}  Kf8 {[%clk 0:01:50]} 24. Rxe8+ {[%clk 0:01:43]}  Rxe8 {[%clk 0:01:49]} 25. Qf2 {[%clk 0:01:44]}  Qf4 {[%clk 0:01:38]} 26. Rxe8+ {[%clk 0:01:37]}  Kxe8 {[%clk 0:01:39]} 27. Qe1+ {[%clk 0:01:32]}  Kd7 {[%clk 0:01:34]} 28. h3 {[%clk 0:01:07]}  Qe3+ {[%clk 0:01:27]} 29. Qxe3 {[%clk 0:00:37]}  dxe3 {[%clk 0:01:27]} 30. d4 {[%clk 0:00:33]}  h5 {[%clk 0:01:22]} 31. Kf1 {[%clk 0:00:30]}  h4 {[%clk 0:01:21]} 32. Ne2 {[%clk 0:00:29]}  Kd6 {[%clk 0:01:19]} 33. Nc3 {[%clk 0:00:29]}  Nh5 {[%clk 0:01:09]} 34. Nxd5 {[%clk 0:00:28]}  Bxc2 {[%clk 0:01:04]} 35. Bxc2 {[%clk 0:00:18]}  Kxd5 {[%clk 0:01:04]} 36. Be4+ {[%clk 0:00:18]}  Kxd4 {[%clk 0:01:04]} 37. Bxb7 {[%clk 0:00:18]}  a5 {[%clk 0:01:04]} 38. Ke1 {[%clk 0:00:17]}  Nf4 {[%clk 0:01:03]} 39. Ba6 {[%clk 0:00:14]}  Nxg2+ {[%clk 0:01:02]} 40. Ke2 {[%clk 0:00:14]}  Nf4+ {[%clk 0:01:02]} 41. Ke1 {[%clk 0:00:15]}  Nxh3 {[%clk 0:01:02]} 42. Bb7 {[%clk 0:00:15]}  Nf4 {[%clk 0:01:01]} 0-1


[Site "https://www.chess.com"]

[Event "Titled Tuesday Blitz September 28 2021"]
[White "Sieciechowicz, Marcin"]
[Black "Pires, Marcos Vinicius Torsani"]
[WhiteFideId "1130170"]
[BlackFideId "2118939"]
[WhiteElo "2318"]
[BlackElo "2273"]
[Result "1-0"]
[Round "07"]
[TimeControl "180+1"]
[Date "2021.09.28"]
[WhiteClock "0:00:06"]
[BlackClock "0:00:02"]

1. d4 {[%clk 0:03:00]}  Nf6 {[%clk 0:02:59]} 2. Bf4 {[%clk 0:03:01]}  d5 {[%clk 0:02:53]} 3. e3 {[%clk 0:03:01]}  e6 {[%clk 0:02:53]} 4. Nd2 {[%clk 0:02:58]}  Bd6 {[%clk 0:02:53]} 5. Bg3 {[%clk 0:02:59]}  O-O {[%clk 0:02:53]} 6. Ngf3 {[%clk 0:02:58]}  b6 {[%clk 0:02:53]} 7. Bd3 {[%clk 0:02:54]}  c5 {[%clk 0:02:52]} 8. c3 {[%clk 0:02:54]}  Ba6 {[%clk 0:02:52]} 9. Bxa6 {[%clk 0:02:52]}  Nxa6 {[%clk 0:02:53]} 10. Ne5 {[%clk 0:02:48]}  Nb8 {[%clk 0:02:46]} 11. f4 {[%clk 0:02:44]}  Qc7 {[%clk 0:02:40]} 12. Qf3 {[%clk 0:02:44]}  Nc6 {[%clk 0:02:40]} 13. Bf2 {[%clk 0:02:41]}  Ne7 {[%clk 0:02:32]} 14. g4 {[%clk 0:02:41]}  Nd7 {[%clk 0:02:27]} 15. g5 {[%clk 0:02:41]}  Nf5 {[%clk 0:02:22]} 16. h4 {[%clk 0:02:38]}  b5 {[%clk 0:02:04]} 17. h5 {[%clk 0:02:34]}  b4 {[%clk 0:01:59]} 18. cxb4 {[%clk 0:02:22]}  cxd4 {[%clk 0:01:54]} 19. exd4 {[%clk 0:02:22]}  Nxe5 {[%clk 0:01:52]} 20. fxe5 {[%clk 0:02:14]}  Bxb4 {[%clk 0:01:51]} 21. Qd3 {[%clk 0:02:11]}  Qa5 {[%clk 0:01:45]} 22. a3 {[%clk 0:02:08]}  Rac8 {[%clk 0:01:39]} 23. h6 {[%clk 0:01:57]}  g6 {[%clk 0:01:33]} 24. Rd1 {[%clk 0:01:44]}  Bxd2+ {[%clk 0:01:32]} 25. Qxd2 {[%clk 0:01:45]}  Qb5 {[%clk 0:01:30]} 26. Qe2 {[%clk 0:01:42]}  Rc4 {[%clk 0:01:24]} 27. O-O {[%clk 0:01:35]}  Rfc8 {[%clk 0:01:20]} 28. Rc1 {[%clk 0:01:32]}  Qb3 {[%clk 0:01:19]} 29. Qd2 {[%clk 0:01:22]}  Qf3 {[%clk 0:01:12]} 30. Rxc4 {[%clk 0:01:12]}  dxc4 {[%clk 0:01:12]} 31. Rc1 {[%clk 0:01:06]}  Qg4+ {[%clk 0:01:07]} 32. Kf1 {[%clk 0:01:01]}  Qf3 {[%clk 0:01:05]} 33. Kg1 {[%clk 0:00:59]}  Qg4+ {[%clk 0:00:57]} 34. Kf1 {[%clk 0:00:59]}  Qh3+ {[%clk 0:00:56]} 35. Kg1 {[%clk 0:00:58]}  Qb3 {[%clk 0:00:47]} 36. Rc3 {[%clk 0:00:57]}  Qb7 {[%clk 0:00:46]} 37. Qc2 {[%clk 0:00:48]}  Qd5 {[%clk 0:00:45]} 38. b3 {[%clk 0:00:18]}  Nxd4 {[%clk 0:00:45]} 39. Rxc4 {[%clk 0:00:17]}  Nf3+ {[%clk 0:00:31]} 40. Kf1 {[%clk 0:00:18]}  Rd8 {[%clk 0:00:29]} 41. Rc8 {[%clk 0:00:14]}  Nxg5 {[%clk 0:00:23]} 42. Rxd8+ {[%clk 0:00:12]}  Qxd8 {[%clk 0:00:24]} 43. Bxa7 {[%clk 0:00:11]}  Nf3 {[%clk 0:00:20]} 44. Bb6 {[%clk 0:00:09]}  Qe8 {[%clk 0:00:13]} 45. Qc3 {[%clk 0:00:09]}  Ng5 {[%clk 0:00:12]} 46. a4 {[%clk 0:00:08]}  Ne4 {[%clk 0:00:11]} 47. Qd4 {[%clk 0:00:08]}  Ng3+ {[%clk 0:00:10]} 48. Kg2 {[%clk 0:00:07]}  Nf5 {[%clk 0:00:11]} 49. Qc3 {[%clk 0:00:06]}  Nxh6 {[%clk 0:00:10]} 50. a5 {[%clk 0:00:07]}  Qe7 {[%clk 0:00:11]} 51. a6 {[%clk 0:00:06]}  Qg5+ {[%clk 0:00:11]} 52. Kf1 {[%clk 0:00:07]}  Qf4+ {[%clk 0:00:11]} 53. Ke1 {[%clk 0:00:07]}  Ng4 {[%clk 0:00:11]} 54. a7 {[%clk 0:00:06]}  Qe4+ {[%clk 0:00:11]} 55. Kd1 {[%clk 0:00:06]}  Qh1+ {[%clk 0:00:09]} 56. Kc2 {[%clk 0:00:07]}  Kg7 {[%clk 0:00:09]} 57. Qc8 {[%clk 0:00:05]}  Qe4+ {[%clk 0:00:08]} 58. Kb2 {[%clk 0:00:05]}  Qxe5+ {[%clk 0:00:08]} 59. Ka2 {[%clk 0:00:06]}  Qe2+ {[%clk 0:00:07]} 60. Ka3 {[%clk 0:00:06]}  Ne5 {[%clk 0:00:03]} 61. a8=Q {[%clk 0:00:07]}  Qe4 {[%clk 0:00:03]} 62. Qh8+ {[%clk 0:00:06]}  Kh6 {[%clk 0:00:02]} 63. Qxe4 {[%clk 0:00:06]} 1-0


[Site "https://www.chess.com"]